Workbook

Sheet Convertible Bond Pricing
L1: Stock Price Today | M1: ='Binomial Stock Tree'!B9 -> 100
L2: Conversion Probability Today | M2: ='Conversion Probabilities'!B9 -> 0.4077895788
A3: Initial Stock Price | B3: =C3/10 -> 100 | C3: 1000 | D3: InitialStockPrice | L3: Credit Discount Rate Today | M3: ='Credit Discount Rates'!B9 -> 0.09553262527
L4: Convertible Bond Price Today | M4: =B31 -> 1240.719673
A5: Stock Volatility | B5: =C5/1000 -> 0.25 | C5: 250 | D5: StockVolatility
A7: Risk Free Rate | B7: =C7/10000 -> 0.06 | C7: 600 | D7: RiskFreeRate
A9: Conversion Price | B9: =C9 -> 1070 | C9: 1070 | D9: ConversionPrice
A11: Credit Risk Premium | B11: =C11/10000 -> 0.06 | C11: 600 | D11: CreditRiskPremium
A13: Conversion Ratio | B13: 10 | D13: ConversionRatio
A15: Transition Multiplier
A16: Up Factor | B16: =EXP(StockVolatility*SQRT(1)) -> 1.284025417 | D16: LambdaUp
A17: Down Factor | B17: =1/LambdaUp -> 0.7788007831 | D17: LambdaDown
A18: Transition Probability
A19: Probability Up | B19: =(EXP(RiskFreeRate*1)-LambdaDown)/(LambdaUp-LambdaDown) -> 0.5602176629 | D19: TransitionProbabilityUp
A20: Probability Down | B20: =1-TransitionProbabilityUp -> 0.4397823371 | D20: TransitionProbabilityDown
A21: Convertible Bond
A22: Coupon | B22: =100*C22/100 -> 70 | C22: 70 | D22: Coupon
A26: Convertible Pricing Tree
J27: =IF('Binomial Stock Tree'!J5*ConversionRatio>ConverstionPrice,'Binomial Stock Tree'!J5*ConversionRatio,1000+Coupon) -> 2718.281828
H28: =TransitionProbabilityUp*(J27/(1+'Credit Discount Rates'!H6))+TransitionProbabilityDown*(J29/(1+'Credit Discount Rates'!H6))+Coupon -> 2190.667912
F29: =TransitionProbabilityUp*(H28/(1+'Credit Discount Rates'!F7))+TransitionProbabilityDown*(H30/(1+'Credit Discount Rates'!F7))+Coupon -> 1770.653854 | J29: =IF('Binomial Stock Tree'!J7*ConversionRatio>ConverstionPrice,'Binomial Stock Tree'!J7*ConversionRatio,1000+Coupon) -> 1648.721271
D30: =TransitionProbabilityUp*(F29/(1+'Credit Discount Rates'!D8))+TransitionProbabilityDown*(F31/(1+'Credit Discount Rates'!D8))+Coupon -> 1458.175712 | H30: =TransitionProbabilityUp*(J29/(1+'Credit Discount Rates'!H8))+TransitionProbabilityDown*(J31/(1+'Credit Discount Rates'!H8))+Coupon -> 1353.34558
B31: =TransitionProbabilityUp*(D30/(1+'Credit Discount Rates'!B9))+TransitionProbabilityDown*(D32/(1+'Credit Discount Rates'!B9))+Coupon -> 1240.719673 | F31: =TransitionProbabilityUp*(H30/(1+'Credit Discount Rates'!F9))+TransitionProbabilityDown*(H32/(1+'Credit Discount Rates'!F9))+Coupon -> 1168.016428 | J31: =IF('Binomial Stock Tree'!J9*ConversionRatio>ConverstionPrice,'Binomial Stock Tree'!J9*ConversionRatio,1000+Coupon) -> 1070
D32: =TransitionProbabilityUp*(F31/(1+'Credit Discount Rates'!D10))+TransitionProbabilityDown*(F33/(1+'Credit Discount Rates'!D10))+Coupon -> 1058.855183 | H32: =TransitionProbabilityUp*(J31/(1+'Credit Discount Rates'!H10))+TransitionProbabilityDown*(J33/(1+'Credit Discount Rates'!H10))+Coupon -> 1025.357143
F33: =TransitionProbabilityUp*(H32/(1+'Credit Discount Rates'!F11))+TransitionProbabilityDown*(H34/(1+'Credit Discount Rates'!F11))+Coupon -> 1006.731404 | J33: =IF('Binomial Stock Tree'!J11*ConversionRatio>ConverstionPrice,'Binomial Stock Tree'!J11*ConversionRatio,1000+Coupon) -> 1070
H34: =TransitionProbabilityUp*(J33/(1+'Credit Discount Rates'!H12))+TransitionProbabilityDown*(J35/(1+'Credit Discount Rates'!H12))+Coupon -> 1079.433962
J35: =IF('Binomial Stock Tree'!J13*ConversionRatio>ConverstionPrice,'Binomial Stock Tree'!J13*ConversionRatio,1000+Coupon) -> 1070
D38: Node 1 | F38: Node 2 | H38: Node 3 | J38: Node 4

Sheet Conversion Probabilities
A3: Conversion Probabilities
J5: =IF('Binomial Stock Tree'!J5*ConversionRatio>1070,1,0) -> 1
H6: =TransitionProbabilityUp*J5+TransitionProbabilityDown*J7 -> 1
F7: =TransitionProbabilityUp*H6+TransitionProbabilityDown*H8 -> 0.806591496 | J7: =IF('Binomial Stock Tree'!J7*ConversionRatio>1070,1,0) -> 1
D8: =TransitionProbabilityUp*F7+TransitionProbabilityDown*F9 -> 0.5898897757 | H8: =TransitionProbabilityUp*J7+TransitionProbabilityDown*J9 -> 0.5602176629
B9: =TransitionProbabilityUp*D8+TransitionProbabilityDown*D10 -> 0.4077895788 | F9: =TransitionProbabilityUp*H8+TransitionProbabilityDown*H10 -> 0.3138438298 | J9: =IF('Binomial Stock Tree'!J9*ConversionRatio>1070,1,0) -> 0
D10: =TransitionProbabilityUp*F9+TransitionProbabilityDown*F11 -> 0.1758208568 | H10: =TransitionProbabilityUp*J9+TransitionProbabilityDown*J11 -> 0
F11: =TransitionProbabilityUp*H10+TransitionProbabilityDown*H12 -> 0 | J11: =IF('Binomial Stock Tree'!J11*ConversionRatio>1070,1,0) -> 0
H12: =TransitionProbabilityUp*J11+TransitionProbabilityDown*J13 -> 0
J13: =IF('Binomial Stock Tree'!J13*ConversionRatio>1070,1,0) -> 0
D16: Node 1 | F16: Node 2 | H16: Node 3 | J16: Node 4

Sheet Credit Discount Rates
A3: Credit Discount Rates
J5: ='Conversion Probabilities'!J5*RiskFreeRate+((1-'Conversion Probabilities'!J5)*(RiskFreeRate+IF('Binomial Stock Tree'!J5>50,CreditRiskPremium,0))) -> 0.06
H6: ='Conversion Probabilities'!H6*RiskFreeRate+((1-'Conversion Probabilities'!H6)*(RiskFreeRate+IF('Binomial Stock Tree'!H6>50,CreditRiskPremium,0))) -> 0.06
F7: ='Conversion Probabilities'!F7*RiskFreeRate+((1-'Conversion Probabilities'!F7)*(RiskFreeRate+IF('Binomial Stock Tree'!F7>50,CreditRiskPremium,0))) -> 0.07160451024 | J7: ='Conversion Probabilities'!J7*RiskFreeRate+((1-'Conversion Probabilities'!J7)*(RiskFreeRate+IF('Binomial Stock Tree'!J7>50,CreditRiskPremium,0))) -> 0.06
D8: ='Conversion Probabilities'!D8*RiskFreeRate+((1-'Conversion Probabilities'!D8)*(RiskFreeRate+IF('Binomial Stock Tree'!D8>50,CreditRiskPremium,0))) -> 0.08460661346 | H8: ='Conversion Probabilities'!H8*RiskFreeRate+((1-'Conversion Probabilities'!H8)*(RiskFreeRate+IF('Binomial Stock Tree'!H8>50,CreditRiskPremium,0))) -> 0.08638694023
B9: ='Conversion Probabilities'!B9*RiskFreeRate+((1-'Conversion Probabilities'!B9)*(RiskFreeRate+IF('Binomial Stock Tree'!B9>50,CreditRiskPremium,0))) -> 0.09553262527 | F9: ='Conversion Probabilities'!F9*RiskFreeRate+((1-'Conversion Probabilities'!F9)*(RiskFreeRate+IF('Binomial Stock Tree'!F9>50,CreditRiskPremium,0))) -> 0.1011693702 | J9: ='Conversion Probabilities'!J9*RiskFreeRate+((1-'Conversion Probabilities'!J9)*(RiskFreeRate+IF('Binomial Stock Tree'!J9>50,CreditRiskPremium,0))) -> 0.12
D10: ='Conversion Probabilities'!D10*RiskFreeRate+((1-'Conversion Probabilities'!D10)*(RiskFreeRate+IF('Binomial Stock Tree'!D10>50,CreditRiskPremium,0))) -> 0.1094507486 | H10: ='Conversion Probabilities'!H10*RiskFreeRate+((1-'Conversion Probabilities'!H10)*(RiskFreeRate+IF('Binomial Stock Tree'!H10>50,CreditRiskPremium,0))) -> 0.12
F11: ='Conversion Probabilities'!F11*RiskFreeRate+((1-'Conversion Probabilities'!F11)*(RiskFreeRate+IF('Binomial Stock Tree'!F11>50,CreditRiskPremium,0))) -> 0.12 | J11: ='Conversion Probabilities'!J11*RiskFreeRate+((1-'Conversion Probabilities'!J11)*(RiskFreeRate+IF('Binomial Stock Tree'!J11>50,CreditRiskPremium,0))) -> 0.12
H12: ='Conversion Probabilities'!H12*RiskFreeRate+((1-'Conversion Probabilities'!H12)*(RiskFreeRate+IF('Binomial Stock Tree'!H12>50,CreditRiskPremium,0))) -> 0.06
J13: ='Conversion Probabilities'!J13*RiskFreeRate+((1-'Conversion Probabilities'!J13)*(RiskFreeRate+IF('Binomial Stock Tree'!J13>50,CreditRiskPremium,0))) -> 0.06
D16: Node 1 | F16: Node 2 | H16: Node 3 | J16: Node 4
A18: *No Credit Risk Premium for Stock Price less than 50

Sheet Binomial Stock Tree
A3: Binomial Stock Tree
J5: =H6*(LambdaUp) -> 271.8281828
H6: =F7*(LambdaUp) -> 211.7000017
F7: =D8*(LambdaUp) -> 164.8721271 | J7: =H6*LambdaDown -> 164.8721271
D8: =B9*(LambdaUp) -> 128.4025417 | H8: =F7*LambdaDown -> 128.4025417
B9: =InitialStockPrice -> 100 | F9: =D8*LambdaDown -> 100 | J9: =H8*LambdaDown -> 100
D10: =B9*LambdaDown -> 77.88007831 | H10: =F9*LambdaDown -> 77.88007831
F11: =D10*LambdaDown -> 60.65306597 | J11: =H10*LambdaDown -> 60.65306597
H12: =F11*LambdaDown -> 47.23665527
J13: =H12*LambdaDown -> 36.78794412
D16: Node 1 | F16: Node 2 | H16: Node 3 | J16: Node 4
